fUST/lending_fUST_20250611
["ID","MTS","AMOUNT","RATE_DAILY","PERIOD"]
[365339857,1749609035003,-439.09134615,0.00021095,4]
[365339858,1749609035012,-460.0,0.00021095,4]
[365339859,1749609035021,-440.47076089,0.00021095,4]
[365339860,1749609035030,-462.99021756,0.00021095,4]
[365339861,1749609035039,-432.66209269,0.00021095,4]
[365339862,1749609035048,-460.0,0.00021095,4]
[365339863,1749609035057,-419.44397162,0.00021095,4]
[365339864,1749609035067,-460.0,0.00021095,4]
[365339865,1749609035076,-460.0,0.00021095,4]
[365339866,1749609035085,-460.0,0.00021095,4]
[365339867,1749609035097,-409.50224827,0.00021095,4]
[365339868,1749609035106,-460.54665427,0.00021095,4]
[365339869,1749609035116,-460.0,0.00021095,4]
[365339870,1749609035125,-445.95949442,0.00021095,4]
[365339871,1749609035135,-460.0,0.00021095,4]
[365339872,1749609035144,-460.0,0.00021095,4]
[365339873,1749609035153,-427.52835199,0.00021095,4]
[365339874,1749609035162,-460.0,0.00021095,4]
[365339875,1749609035172,-460.0,0.00021095,4]
[365339876,1749609035181,-410.03205001,0.00021095,4]
[365339877,1749609035191,-460.0,0.00021095,4]
[365339878,1749609035200,-460.0,0.00021095,4]
[365339879,1749609035209,-460.0,0.00021095,4]
[365339880,1749609035219,-460.0,0.00021095,4]
[365339881,1749609035228,-437.71061627,0.00021095,4]
[365339882,1749609035237,-455.17489689,0.00021095,4]
[365339883,1749609035246,-460.0,0.00021095,4]
[365339884,1749609035255,-460.0,0.00021095,4]
[365339885,1749609035264,-460.0,0.00021095,4]
[365339886,1749609035273,-445.32968744,0.00021095,4]
[365339887,1749609035282,-232.82011443,0.00021095,4]
[365339888,1749609035291,-460.0,0.00021095,4]
[365339889,1749609035301,-460.0,0.00021095,4]
[365339890,1749609035310,-460.0,0.00021095,4]
[365339891,1749609035319,-434.43435421,0.00021095,4]
[365339892,1749609035328,-460.0,0.00021095,4]
[365339893,1749609035337,-449.13812128,0.00021095,4]
[365339894,1749609035346,-460.0,0.00021095,4]
[365339895,1749609035355,-463.09256861,0.00021095,4]
[365339896,1749609035365,-408.75122481,0.00021095,4]
[365339897,1749609035374,-455.76783304,0.00021095,4]
[365339898,1749609035383,-459.68602646,0.00021095,4]
[365339899,1749609035393,-515.42047339,0.00021095,4]
[365339900,1749609035402,-350.9111907,0.00021095,4]
[365339901,1749609035411,-414.96475332,0.00021095,4]
[365339902,1749609035420,-460.0,0.00021095,4]
[365339903,1749609035430,-460.0,0.00021095,4]
[365339904,1749609035439,-460.0,0.00021095,4]
[365339905,1749609035448,-460.0,0.00021095,4]
[365339906,1749609035457,-460.0,0.00021095,4]
[365339907,1749609035466,-460.0,0.00021095,4]
[365339908,1749609035476,-460.0,0.00021095,4]
[365339909,1749609035486,-460.0,0.00021095,4]
[365339910,1749609035495,-432.55554105,0.00021095,4]
[365339911,1749609035504,-460.0,0.00021095,4]
[365339912,1749609035513,-432.10861023,0.00021095,4]
[365339913,1749609035523,-460.0,0.00021095,4]
[365339914,1749609035532,-460.0,0.00021095,4]
[365339915,1749609035541,-460.0,0.00021095,4]
[365339916,1749609035551,-460.0,0.00021095,4]
[365339917,1749609035560,-460.0,0.00021095,4]
[365339918,1749609035570,-460.0,0.00021095,4]
[365339919,1749609035579,-460.0,0.00021095,4]
[365339920,1749609035588,-441.22975194,0.00021095,4]
[365339921,1749609035598,-443.59741198,0.00021095,4]
[365339922,1749609035607,-460.96826726,0.00021095,4]
[365339923,1749609035616,-1088.81,0.00021095,4]
[365339924,1749609035625,-407.04394238,0.00021095,4]
[365339925,1749609035635,-460.0,0.00021095,4]
[365339926,1749609035644,-464.68203266,0.00021095,4]
[365339927,1749609035653,-451.83420103,0.00021095,4]
[365339928,1749609035663,-460.0,0.00021095,4]
[365339929,1749609035672,-460.0,0.00021095,4]
[365339930,1749609035681,-476.94856338,0.00021095,4]
[365339931,1749609035690,-460.0,0.00021095,4]
[365339932,1749609035699,-460.0,0.00021095,4]
[365339933,1749609035708,-386.94283755,0.00021095,4]
[365339934,1749609035717,-460.0,0.00021095,4]
[365339935,1749609035727,-1167.82,0.00021095,4]
[365339936,1749609035736,-460.0,0.00021095,4]
[365339937,1749609035745,-888.17,0.00021095,4]
[365339938,1749609035754,-460.0,0.00021095,4]
[365339939,1749609035764,-448.53803263,0.00021095,4]
[365339940,1749609035773,-460.0,0.00021095,4]
[365339941,1749609035782,-460.0,0.00021095,4]
[365339942,1749609035792,-460.0,0.00021095,4]
[365339943,1749609035801,-460.0,0.00021095,4]
[365339944,1749609035810,-436.95924757,0.00021095,4]
[365339945,1749609035819,-445.49132764,0.00021095,4]
[365339946,1749609035829,-460.0,0.00021095,4]
[365339947,1749609035839,-460.0,0.00021095,4]
[365339948,1749609035848,-460.0,0.00021095,4]
[365339949,1749609035857,-460.0,0.00021095,4]
[365339950,1749609035866,-449.45407429,0.00021095,4]
[365339951,1749609035875,-460.0,0.00021095,4]
[365339952,1749609035885,-1445.78,0.00021095,4]
[365339953,1749609035894,-460.0,0.00021095,4]
[365339954,1749609035903,-460.0,0.00021095,4]
[365339955,1749609035912,-460.0,0.00021095,4]
[365339956,1749609035922,-454.51167596,0.00021095,4]
[365339957,1749609035931,-460.0,0.00021095,4]
[365339958,1749609035941,-440.0,0.00021095,4]
[365339959,1749609035950,-459.90303418,0.00021095,4]
[365339960,1749609035960,-460.0,0.00021095,4]
[365339961,1749609035970,-460.0,0.00021095,4]
[365339962,1749609035979,-854.51,0.00021095,4]
[365339963,1749609035989,-460.0,0.00021095,4]
[365339964,1749609035998,-438.57816002,0.00021095,4]
[365339965,1749609036007,-460.0,0.00021095,4]
[365339966,1749609036016,-446.54047025,0.00021095,4]
[365339967,1749609036026,-460.0,0.00021095,4]
[365339968,1749609036036,-460.0,0.00021095,4]
[365339969,1749609036045,-500.0,0.00021095,4]
[365339970,1749609036054,-460.0,0.00021095,4]
[365339971,1749609036063,-500.0,0.00021095,4]
[365339972,1749609036072,-500.0,0.00021095,4]
[365339973,1749609036081,-500.0,0.00021095,4]
[365339974,1749609036094,-570.5937577,0.00021095,4]
[365339975,1749609036103,-460.0,0.00021095,4]
[365339976,1749609036112,-530.0,0.00021095,4]
[365339977,1749609036121,-460.0,0.00021095,4]
[365339978,1749609036131,-460.0,0.00021095,4]
[365339979,1749609036228,-438.24349034,0.00021095,4]
[365339980,1749609036240,-460.0,0.00021095,4]
[365339981,1749609036251,-468.24267076,0.00021095,4]
[365339982,1749609036260,-460.0,0.00021095,4]
[365339983,1749609036269,-400.0,0.00021095,4]
[365339984,1749609036279,-455.85054968,0.00021095,4]
[365339985,1749609036288,-460.0,0.00021095,4]
[365339986,1749609036297,-431.47166452,0.00021095,4]
[365339987,1749609036306,-460.0,0.00021095,4]
[365339988,1749609036316,-404.49946876,0.00021095,4]
[365339989,1749609036325,-1150.05,0.00021095,4]
[365339990,1749609036334,-460.0,0.00021095,4]
[365339991,1749609036343,-460.0,0.00021095,4]
[365339992,1749609036352,-460.0,0.00021095,4]
[365339993,1749609036361,-460.0,0.00021095,4]
[365339994,1749609036370,-443.88759927,0.00021095,4]
[365339995,1749609036379,-460.0,0.00021095,4]
[365339996,1749609036389,-460.0,0.00021095,4]
[365339997,1749609036399,-460.0,0.00021095,4]
[365339998,1749609036409,-460.0,0.00021095,4]
[365339999,1749609036418,-442.47828112,0.00021095,4]
[365340000,1749609036428,-460.0,0.00021095,4]
[365340001,1749609036438,-401.55033881,0.00021095,4]
[365340002,1749609036447,-460.0,0.00021095,4]
[365340003,1749609036456,-469.03050183,0.00021095,4]
[365340004,1749609036466,-460.0,0.00021095,4]
[365340005,1749609036475,-403.04139072,0.00021095,4]
[365340006,1749609036485,-460.0,0.00021095,4]
[365340007,1749609036494,-460.0,0.00021095,4]
[365340008,1749609036504,-451.87544071,0.00021095,4]
[365340009,1749609036513,-460.0,0.00021095,4]
[365340010,1749609036523,-460.0,0.00021095,4]
[365340011,1749609036532,-480.17347945,0.00021095,4]
[365340012,1749609036542,-516.21,0.00021095,4]
[365340013,1749609036551,-433.87976963,0.00021095,4]
[365340014,1749609036560,-460.0,0.00021095,4]
[365340015,1749609036570,-460.0,0.00021095,4]
[365340016,1749609036579,-440.0,0.00021095,4]
[365340017,1749609036589,-460.0,0.00021095,4]
[365340018,1749609036599,-431.62616798,0.00021095,4]
[365340019,1749609036608,-460.0,0.00021095,4]
[365340020,1749609036617,-475.94843183,0.00021095,4]
[365340021,1749609036627,-330.10578544,0.00021095,4]
[365340022,1749609036636,-460.0,0.00021095,4]
[365340023,1749609036646,-466.98053076,0.00021095,4]
[365340024,1749609036656,-454.73913236,0.00021095,4]
[365340025,1749609036665,-460.0,0.00021095,4]
[365340026,1749609036675,-455.00995715,0.00021095,4]
[365340027,1749609036684,-460.0,0.00021095,4]
[365340028,1749609036694,-483.06685245,0.00021095,4]
[365340029,1749609036703,-453.30192872,0.00021095,4]
[365340030,1749609036712,-440.0,0.00021095,4]
[365340031,1749609036723,-454.48849408,0.00021095,4]
[365340032,1749609036732,-460.0,0.00021095,4]
[365340033,1749609036741,-475.38199753,0.00021095,4]
[365340034,1749609036751,-453.81146938,0.00021095,4]
[365340035,1749609036761,-392.24845536,0.00021095,4]
[365340036,1749609036771,-460.0,0.00021095,4]
[365340037,1749609036780,-476.44301515,0.00021095,4]
[365340038,1749609036790,-460.0,0.00021095,4]
[365340039,1749609036800,-304.34219222,0.00021095,4]
[365340040,1749609036810,-471.03177483,0.00021095,4]
[365340041,1749609036819,-460.0,0.00021095,4]
[365340042,1749609036828,-464.74612439,0.00021095,4]
[365340043,1749609036838,-522.42639287,0.00021095,4]
[365340044,1749609036848,-460.0,0.00021095,4]
[365340045,1749609036857,-460.0,0.00021095,4]
[365340046,1749609036866,-440.58234352,0.00021095,4]
[365340047,1749609036876,-447.8115728,0.00021095,4]
[365340048,1749609036885,-1203.07,0.00021095,4]
[365340049,1749609036895,-470.74519645,0.00021095,4]
[365340050,1749609036904,-460.0,0.00021095,4]
[365340051,1749609036914,-460.0,0.00021095,4]
[365340052,1749609036923,-460.0,0.00021095,4]
[365340053,1749609036933,-2936.58,0.00021095,4]
[365340054,1749609036943,-460.0,0.00021095,4]
[365340055,1749609036952,-460.0,0.00021095,4]
[365340056,1749609036962,-441.84829069,0.00021095,4]
[365340057,1749609036972,-405.19608604,0.00021095,4]
[365340058,1749609036981,-460.0,0.00021095,4]
[365340059,1749609036991,-444.97400309,0.00021095,4]
[365340060,1749609037000,-465.69670191,0.00021095,4]
[365340061,1749609037010,-460.0,0.00021095,4]
[365340062,1749609037019,-482.84011172,0.00021095,4]
[365340063,1749609037028,-446.20317163,0.00021095,4]
[365340064,1749609037038,-461.45653479,0.00021095,4]
[365340065,1749609037047,-1253.38,0.00021095,4]
[365340066,1749609037057,-447.19437444,0.00021095,4]
[365340067,1749609037067,-578.39,0.00021095,4]
[365340068,1749609037076,-400.0,0.00021095,4]
[365340069,1749609037086,-452.07239791,0.00021095,4]
[365340070,1749609037098,-462.85049869,0.00021095,4]
[365340071,1749609037108,-443.41709701,0.00021095,4]
[365340072,1749609037118,-2106.86,0.00021095,4]
[365340073,1749609037128,-489.3960794,0.00021095,4]
[365340074,1749609037139,-460.0,0.00021095,4]
[365340075,1749609037149,-460.0,0.00021095,4]
[365340076,1749609037159,-451.55096451,0.00021095,4]
[365340078,1749609037169,-404.43787324,0.00021095,4]
[365340079,1749609037178,-460.0,0.00021095,4]
[365340080,1749609037188,-460.0,0.00021095,4]
[365340081,1749609037204,-229.99439496,0.00021095,4]
[365340082,1749609037219,-460.0,0.00021095,2]
[365340083,1749609037234,-465.86405709,0.00021095,4]
[365340084,1749609037248,-460.0,0.00021095,4]
[365340085,1749609037257,-436.35539237,0.00021095,4]
[365340086,1749609037266,-460.0,0.00021095,4]
[365340087,1749609037275,-460.0,0.00021095,4]
[365340088,1749609037284,-485.1547343,0.00021095,4]
[365340089,1749609037294,-460.0,0.00021095,4]
[365340090,1749609037304,-460.94995698,0.00021095,4]
[365340091,1749609037313,-1603.01,0.00021095,4]
[365340092,1749609037322,-1150.16,0.00021095,4]
[365340093,1749609037332,-460.78943362,0.00021095,4]
[365340094,1749609037342,-458.87213463,0.00021095,4]
[365340095,1749609037350,-2491.0,0.00021095,4]
[365340097,1749609037360,-460.0,0.00021095,4]
[365340099,1749609037368,-111.49427173,0.00021095,4]
[365340110,1749609037499,-429.15026616,0.00021095,4]
[365340112,1749609037508,-470.878404,0.00021095,4]
[365340114,1749609037518,-460.0,0.00021095,4]
[365340116,1749609037528,-402.57993206,0.00021095,4]
[365340118,1749609037539,-1491.96553371,0.00021095,4]
[365340121,1749609037550,-910.78446629,0.00021095,4]
[365340123,1749609037560,-401.91409952,0.00021095,4]
[365340124,1749609037569,-16.37143406,0.00021095,4]
[365340151,1749609037808,-159.37098162,0.00020973,2]
[365340153,1749609037819,-564.91209694,0.00021095,4]
[365340155,1749609037828,-478.4174383,0.00021095,4]
[365340157,1749609037837,-460.0,0.00021095,4]
[365340159,1749609037846,-460.0,0.00021095,4]
[365340161,1749609037855,-454.85898777,0.00021095,4]
[365340163,1749609037864,-460.0,0.00021095,4]
[365340165,1749609037873,-420.0,0.00021095,4]
[365340167,1749609037883,-401.36881582,0.00021095,4]
[365340169,1749609037892,-405.51867862,0.00021095,4]
[365340171,1749609037901,-460.0,0.00021095,4]
[365340173,1749609037911,-464.18035832,0.00021095,4]
[365340175,1749609037920,-467.06552536,0.00021095,4]
[365340177,1749609037929,-460.0,0.00021095,4]
[365340179,1749609037938,-520.44232014,0.00021095,4]
[365340181,1749609037947,-415.40631569,0.00021095,4]
[365340183,1749609037957,-460.0,0.00021095,4]
[365340185,1749609037966,-460.0,0.00021095,4]
[365340187,1749609037976,-451.98576184,0.00021095,4]
[365340189,1749609037986,-405.39568579,0.00021095,4]
[365340191,1749609037995,-448.36070407,0.00021095,4]
[365340193,1749609038005,-442.78848297,0.00021095,4]
[365340195,1749609038014,-448.19903023,0.00021095,4]
[365340196,1749609038023,-412.44758515,0.00021095,4]
[365340198,1749609038033,-460.0,0.00021095,4]
[365340200,1749609038042,-480.872299,0.00021095,4]
[365340202,1749609038051,-460.0,0.00021095,4]
[365340204,1749609038061,-723.02,0.00021095,4]
[365340206,1749609038070,-569.50347656,0.00021095,4]
[365340209,1749609038079,-456.97559507,0.00021095,4]
[365340210,1749609038089,-401.22501653,0.00021095,4]
[365340212,1749609038104,-460.0,0.00021095,4]
[365340214,1749609038114,-460.0,0.00021095,4]
[365340216,1749609038123,-460.0,0.00021095,4]
[365340218,1749609038134,-460.0,0.00021095,4]
[365340221,1749609038144,-460.0,0.00021095,4]
[365340223,1749609038153,-463.32,0.000211,2]
[365340224,1749609038162,-564.00514275,0.00021368,4]
[365340226,1749609038172,-281.07,0.00021368,2]
[365340228,1749609038181,-413.72897381,0.00021369,4]
[365340230,1749609038191,-411.37512455,0.00021369,4]
[365340232,1749609038200,-444.10038789,0.00021369,4]
[365340234,1749609038209,-424.30010182,0.00021369,4]
[365340236,1749609038219,-455.62478937,0.00021369,4]
[365340238,1749609038228,-421.90078551,0.00021369,4]
[365340240,1749609038238,-381.77303775,0.00021369,4]
[365340242,1749609038247,-436.62672692,0.00021369,4]
[365340244,1749609038257,-440.88048561,0.00021369,4]
[365340246,1749609038265,-432.22064957,0.00021369,4]
[365340257,1749609038361,-430.47073606,0.00021369,4]
[365340259,1749609038371,-430.8441437,0.00021369,4]
[365340261,1749609038380,-384.46813735,0.00021369,4]
[365340263,1749609038389,-429.55604813,0.00021369,4]
[365340265,1749609038399,-398.23836914,0.00021369,4]
[365340267,1749609038408,-422.42869018,0.00021369,4]
[365340269,1749609038417,-507.03073588,0.00021369,4]
[365340271,1749609038426,-432.39716831,0.00021369,4]
[365340273,1749609038436,-453.86286098,0.00021369,4]
[365340275,1749609038445,-423.42681461,0.00021369,4]
[365340277,1749609038455,-390.90472607,0.00021369,4]
[365340279,1749609038464,-441.29421577,0.00021369,4]
[365340281,1749609038474,-449.2854252,0.00021369,4]
[365340283,1749609038483,-430.01911832,0.00021369,4]
[365340285,1749609038493,-229.39,0.00021369,4]
[365340287,1749609038502,-456.72800396,0.00021369,4]
[365340289,1749609038512,-454.41949045,0.00021369,4]
[365340291,1749609038521,-451.20134137,0.00021369,4]
[365340293,1749609038531,-452.79028325,0.00021369,4]
[365340295,1749609038540,-197.88211373,0.00021369,4]
[365340297,1749609038549,-431.70162783,0.00021369,4]
[365340299,1749609038558,-442.33935742,0.00021369,4]
[365340301,1749609038567,-409.48946999,0.00021369,4]
[365340303,1749609038577,-375.99746609,0.00021369,4]
[365340305,1749609038586,-451.35085523,0.00021369,4]
[365340307,1749609038596,-378.16444686,0.00021369,4]
[365340309,1749609038605,-424.17771019,0.00021369,4]
[365340311,1749609038614,-332.38088535,0.00021369,4]
[365340313,1749609038624,-344.91019673,0.00021369,4]
[365340315,1749609038634,-419.9954319,0.00021369,4]
[365340317,1749609038643,-429.72913841,0.00021369,4]
[365340319,1749609038653,-476.2878459,0.00021369,4]
[365340321,1749609038662,-416.53277494,0.00021369,4]
[365340323,1749609038671,-422.00434205,0.00021369,4]
[365340325,1749609038680,-203.42549555,0.00021369,4]
[365340327,1749609038689,-425.58526049,0.00021369,4]
[365340329,1749609038699,-419.02614701,0.00021369,4]
[365340331,1749609038708,-538.5076328,0.00021369,4]
[365340333,1749609038717,-439.23847646,0.00021369,4]
[365340335,1749609038727,-491.45270322,0.00021369,4]
[365340337,1749609038735,-460.0,0.00021369,4]
[365340339,1749609038745,-427.84103979,0.00021369,4]
[365340340,1749609038754,-236.86643694,0.00021369,4]
[365340342,1749609038763,-434.001554,0.00021369,4]
[365340344,1749609038773,-419.23629255,0.00021369,4]
[365340346,1749609038782,-533.28083815,0.00021369,4]
[365340348,1749609038791,-376.07017163,0.00021369,4]
[365340350,1749609038800,-394.8692918,0.00021369,4]
[365340352,1749609038809,-416.44310828,0.00021369,4]
[365340354,1749609038818,-365.06995512,0.00021369,4]
[365340356,1749609038829,-388.98924997,0.00021369,4]
[365340358,1749609038847,-407.21477393,0.00021369,4]
[365340360,1749609038863,-436.34797716,0.00021369,4]
[365340362,1749609038873,-443.01752025,0.00021369,4]
[365340364,1749609038882,-430.10155799,0.00021369,4]
[365340366,1749609038891,-447.4702636,0.00021369,4]
[365340368,1749609038900,-433.93211154,0.00021369,4]
[365340370,1749609038909,-417.12628553,0.00021369,4]
[365340372,1749609038918,-433.58429101,0.00021369,4]
[365340374,1749609038927,-407.93567005,0.00021369,4]
[365340376,1749609038936,-460.0,0.00021369,4]
[365340378,1749609038946,-495.27225257,0.00021369,4]
[365340380,1749609038955,-265.34201447,0.00021369,4]
[365340382,1749609038964,-416.2760899,0.00021369,4]
[365340383,1749609038974,-453.04895585,0.00021369,4]
[365340385,1749609038985,-410.88661246,0.00021369,4]
[365340387,1749609039005,-449.64456163,0.00021369,4]
[365340389,1749609039021,-423.48181343,0.00021369,4]
[365340391,1749609039031,-453.08626217,0.00021369,4]
[365340393,1749609039040,-460.0,0.00021369,4]
[365340395,1749609039049,-460.0,0.00021369,4]
[365340397,1749609039059,-444.34380485,0.00021369,4]
[365340399,1749609039067,-445.62890148,0.00021369,4]
[365340401,1749609039077,-460.0,0.00021369,4]
[365340402,1749609039087,-448.05741951,0.00021369,4]
[365340403,1749609039101,-468.94576689,0.00021369,4]
[365340404,1749609039110,-440.25826694,0.00021369,4]
[365340405,1749609039119,-460.0,0.00021369,4]
[365340406,1749609039128,-436.14404459,0.00021369,4]
[365340407,1749609039138,-417.33531873,0.00021369,4]
[365340408,1749609039147,-405.88529134,0.00021369,4]
[365340409,1749609039156,-440.64958816,0.00021369,4]
[365340410,1749609039166,-400.74454511,0.00021369,4]
[365340411,1749609039176,-460.0,0.00021369,4]
[365340412,1749609039186,-431.55377356,0.00021369,4]
[365340413,1749609039195,-460.0,0.00021369,4]
[365340414,1749609039204,-434.27302743,0.00021369,4]
[365340415,1749609039214,-460.0,0.00021369,4]
[365340416,1749609039224,-257.68732231,0.00021369,4]
[365340417,1749609039233,-460.0,0.00021369,4]
[365340418,1749609039243,-460.0,0.00021369,4]
[365340419,1749609039252,-428.74688875,0.00021369,4]
[365340420,1749609039261,-460.0,0.00021369,4]
[365340421,1749609039270,-438.11674702,0.00021369,4]
[365340422,1749609039279,-460.0,0.00021369,4]
[365340423,1749609039288,-460.0,0.00021369,4]
[365340424,1749609039298,-387.40667591,0.00021369,4]
[365340425,1749609039307,-460.0,0.00021369,4]
[365340426,1749609039317,-460.0,0.00021369,4]
[365340427,1749609039326,-460.0,0.00021369,4]
[365340428,1749609039336,-498.28685894,0.00021369,4]
[365340429,1749609039345,-455.83559669,0.00021369,4]
[365340430,1749609039354,-460.0,0.00021369,4]
[365340432,1749609039363,-460.0,0.00021369,4]
[365340433,1749609039372,-460.0,0.00021369,4]
[365340434,1749609039381,-460.0,0.00021369,4]
[365340435,1749609039390,-460.0,0.00021369,4]
[365340436,1749609039399,-430.5716422,0.00021369,4]
[365340437,1749609039408,-460.0,0.00021369,4]
[365340438,1749609039418,-460.0,0.00021369,4]
[365340439,1749609039427,-460.0,0.00021369,4]
[365340440,1749609039436,-435.44725883,0.00021369,4]
[365340441,1749609039446,-460.0,0.00021369,4]
[365340442,1749609039456,-460.0,0.00021369,4]
[365340443,1749609039466,-537.68487955,0.00021369,4]
[365340444,1749609039475,-460.0,0.00021369,4]
[365340445,1749609039485,-460.0,0.00021369,4]
[365340446,1749609039495,-460.0,0.00021369,4]
[365340447,1749609039504,-460.0,0.00021369,4]
[365340448,1749609039513,-445.85963981,0.00021369,4]
[365340449,1749609039522,-443.74561698,0.00021369,4]
[365340450,1749609039531,-453.36334068,0.00021369,4]
[365340452,1749609039541,-433.5328771,0.00021369,4]
[365340454,1749609039550,-1167.82,0.00021369,4]
[365340456,1749609039559,-888.17,0.00021369,4]
[365340458,1749609039568,-434.50177791,0.00021369,4]
[365340460,1749609039577,-440.34705707,0.00021369,4]
[365340462,1749609039587,-559.56898753,0.00021369,4]
[365340464,1749609039597,-460.0,0.00021369,4]
[365340466,1749609039606,-460.0,0.00021369,4]
[365340468,1749609039615,-460.0,0.00021369,4]
[365340470,1749609039625,-467.99517447,0.00021369,4]
[365340472,1749609039634,-447.59653477,0.00021369,4]
[365340473,1749609039644,-438.07816898,0.00021369,4]
[365340474,1749609039653,-1445.78,0.00021369,4]
[365340476,1749609039662,-460.0,0.00021369,4]
[365340478,1749609039671,-446.69974524,0.00021369,4]
[365340480,1749609039680,-460.0,0.00021369,4]
[365340482,1749609039690,-460.0,0.00021369,4]
[365340484,1749609039699,-353.49443933,0.00021369,4]
[365340485,1749609039708,-460.0,0.00021369,4]
[365340487,1749609039717,-854.51,0.00021369,4]
[365340489,1749609039726,-442.29015535,0.00021369,4]
[365340490,1749609039735,-451.29132661,0.00021369,4]
[365340492,1749609039744,-431.4432613,0.00021369,4]
[365340494,1749609039754,-460.0,0.00021369,4]
[365340496,1749609039763,-405.14331459,0.00021369,4]
[365340498,1749609039772,-397.95333078,0.00021369,4]
[365340500,1749609039780,-444.47229542,0.00021369,4]
[365340502,1749609039789,-428.29244261,0.00021369,4]
[365340504,1749609039799,-454.74732396,0.00021369,4]
[365340505,1749609039807,-460.0,0.00021369,4]
[365340506,1749609039817,-537.37358022,0.00021369,4]
[365340507,1749609039826,-422.61235914,0.00021369,4]
[365340508,1749609039836,-1150.05,0.00021369,4]
[365340509,1749609039844,-460.0,0.00021369,4]
[365340510,1749609039854,-444.47637227,0.00021369,4]
[365340511,1749609039863,-460.0,0.00021369,4]
[365340512,1749609039872,-438.11747306,0.00021369,4]
[365340513,1749609039881,-403.80584829,0.00021369,4]
[365340514,1749609039891,-460.0,0.00021369,4]
[365340515,1749609039900,-437.6567793,0.00021369,4]
[365340516,1749609039910,-460.0,0.00021369,4]
[365340517,1749609039920,-459.54717188,0.00021369,4]
[365340519,1749609039929,-378.84528578,0.00021369,4]
[365340521,1749609039938,-460.0,0.00021369,4]
[365340523,1749609039947,-460.0,0.00021369,4]
[365340524,1749609039956,-414.13717177,0.00021369,4]
[365340525,1749609039965,-423.48202224,0.00021369,4]
[365340526,1749609039974,-460.0,0.00021369,4]
[365340527,1749609039983,-516.21,0.00021369,4]
[365340528,1749609039992,-460.0,0.00021369,4]
[365340529,1749609040001,-481.65193267,0.00021369,4]
[365340530,1749609040010,-450.29188644,0.00021369,4]
[365340531,1749609040019,-436.51236841,0.00021369,4]
[365340532,1749609040028,-439.4111007,0.00021369,4]
[365340533,1749609040037,-430.15886791,0.00021369,4]
[365340534,1749609040046,-460.0,0.00021369,4]
[365340535,1749609040055,-433.28035187,0.00021369,4]
[365340536,1749609040064,-434.20073137,0.00021369,4]
[365340537,1749609040073,-460.0,0.00021369,4]
[365340538,1749609040082,-399.25212563,0.00021369,4]
[365340539,1749609040092,-460.0,0.00021369,4]
[365340540,1749609040104,-377.61489236,0.00021369,4]
[365340541,1749609040113,-1203.07,0.00021369,4]
[365340542,1749609040122,-426.08034981,0.00021369,4]
[365340543,1749609040131,-433.29048765,0.00021369,4]
[365340544,1749609040141,-460.0,0.00021369,4]
[365340545,1749609040152,-2936.58,0.00021369,4]
[365340546,1749609040161,-380.0,0.00021369,4]
[365340547,1749609040170,-416.21559507,0.00021369,4]
[365340548,1749609040180,-476.74405932,0.00021369,4]
[365340549,1749609040190,-439.51262156,0.00021369,4]
[365340550,1749609040199,-1253.38,0.00021369,4]
[365340551,1749609040208,-578.39,0.00021369,4]
[365340552,1749609040218,-2106.86,0.00021369,4]
[365340557,1749609040306,-494.88272205,0.00021369,4]
[365340558,1749609040315,-460.0,0.00021369,4]
[365340559,1749609040324,-460.0,0.00021369,4]
[365340560,1749609040333,-460.0,0.00021369,4]
[365340561,1749609040343,-420.0,0.00021369,2]
[365340562,1749609040352,-385.68139221,0.00021369,4]
[365340563,1749609040361,-460.0,0.00021369,4]